bitfinex/quotes_BTCUSD_20240819
["timestamp","ask_amount","ask_price","bid_price","bid_amount"]
[1724102537851,2.03044868,59172.0,59171.0,0.0029031]
[1724102538654,2.09123625,59172.0,59171.0,0.0029031]
[1724102538909,2.03044868,59172.0,59171.0,0.0029031]
[1724102539106,2.03044043,59172.0,59171.0,0.0029031]
[1724102540241,2.18122294,59172.0,59171.0,0.0029031]
[1724102541484,2.03044043,59172.0,59171.0,0.0029031]
[1724102543188,2.02644043,59172.0,59171.0,0.0029031]
[1724102543402,2.02844043,59172.0,59171.0,0.0029031]
[1724102543845,2.03044043,59172.0,59171.0,0.0029031]
[1724102548346,2.03043681,59172.0,59171.0,0.0029031]
[1724102549657,2.17926696,59172.0,59171.0,0.0029031]
[1724102549869,2.03043681,59172.0,59171.0,0.0029031]
[1724102550906,1.68943981,59172.0,59171.0,0.0029031]
[1724102551119,1.68843981,59172.0,59171.0,0.0029031]
[1724102551765,1.68743981,59172.0,59171.0,0.0029031]
[1724102552392,1.68843981,59172.0,59171.0,0.0029031]
[1724102553018,1.6884462,59172.0,59171.0,0.0029031]
[1724102553434,1.6874462,59172.0,59171.0,0.0029031]
[1724102554124,1.6884462,59172.0,59171.0,0.0029031]
[1724102554763,1.5923462,59172.0,59171.0,0.0029031]
[1724102555186,1.6874462,59172.0,59171.0,0.0029031]
[1724102556275,1.83825119,59172.0,59171.0,0.0029031]
[1724102557350,1.91830852,59172.0,59171.0,0.0029031]
[1724102557557,1.91846226,59172.0,59171.0,0.0029031]
[1724102558192,1.76752284,59172.0,59171.0,0.0029031]
[1724102559737,1.68746274,59172.0,59171.0,0.0029031]
[1724102559954,1.83846865,59172.0,59171.0,0.0029031]
[1724102560426,1.76946954,59172.0,59171.0,0.0029031]
[1724102562354,1.76849455,59172.0,59171.0,0.0029031]
[1724102563004,0.83040055,59172.0,59171.0,0.0029031]
[1724102563216,0.49240355,59172.0,59171.0,0.0029031]
[1724102563428,0.83040055,59172.0,59171.0,0.15454748]
[1724102563639,0.83040055,59172.0,59171.0,0.1407031]
[1724102563848,0.83040055,59172.0,59171.0,0.15454748]
[1724102564942,1.16839755,59172.0,59171.0,0.15454748]
[1724102565366,1.16839755,59172.0,59171.0,0.1407031]
[1724102566906,1.16946336,59172.0,59171.0,0.1407031]
[1724102568196,1.33968975,59172.0,59171.0,0.0803031]
[1724102571464,1.34039751,59172.0,59171.0,0.0803031]
[1724102571659,1.34039762,59172.0,59171.0,0.0803031]
[1724102576383,1.17059167,59172.0,59171.0,0.0803031]
[1724102576592,1.17059167,59172.0,59171.0,0.1410031]
[1724102577237,0.1542509,59172.0,59171.0,0.1410031]
[1724102577452,0.2400754,59172.0,59171.0,0.1410031]
[1724102577656,0.0710774,59172.0,59171.0,0.1410031]
[1724102577863,0.0710774,59172.0,59171.0,0.15482633]
[1724102578067,0.04462505,59172.0,59171.0,0.15482633]
[1724102579126,0.04462505,59172.0,59171.0,0.32382733]
[1724102579333,0.04462505,59172.0,59171.0,0.15482633]
[1724102580795,0.04777125,59172.0,59171.0,0.15482633]
[1724102581000,0.04777125,59172.0,59171.0,0.32382733]
[1724102581386,0.04777125,59172.0,59171.0,0.15482633]
[1724102582489,0.17375776,59172.0,59171.0,0.15482633]
[1724102583743,0.17375776,59172.0,59171.0,0.32382733]
[1724102584790,0.17375776,59172.0,59171.0,0.15482633]
[1724102585199,0.04777125,59172.0,59171.0,0.32382733]
[1724102586418,0.12678164,59172.0,59171.0,0.32382733]
[1724102586626,0.14855289,59172.0,59171.0,0.32382733]
[1724102586844,0.14855289,59172.0,59171.0,0.66183033]
[1724102587053,0.026,59172.0,59171.0,0.99983333]
[1724102587256,0.07639347,59172.0,59171.0,0.99983333]
[1724102587456,0.026,59172.0,59171.0,0.99983333]
[1724102589967,0.000821,59173.0,59172.0,1.00986325]
[1724102590145,0.000821,59173.0,59172.0,1.34786025]
[1724102590606,0.000821,59173.0,59172.0,1.36163609]
[1724102592283,0.000821,59173.0,59172.0,1.36263609]
[1724102592488,0.000821,59173.0,59172.0,1.36363609]
[1724102592693,0.000821,59173.0,59172.0,1.36263609]
[1724102592900,0.000821,59173.0,59172.0,1.36163609]
[1724102596850,0.000821,59173.0,59172.0,1.33986484]
[1724102597056,0.000821,59173.0,59172.0,1.00186784]
[1724102598108,0.000821,59173.0,59172.0,0.93706784]
[1724102603918,0.000821,59173.0,59172.0,0.99786784]
[1724102617863,0.05124601,59173.0,59172.0,0.99786784]
[1724102620158,0.000821,59173.0,59172.0,0.99786784]
[1724102620295,0.07645851,59173.0,59172.0,0.99786784]
[1724102620522,0.000821,59173.0,59172.0,1.33586484]
[1724102622534,0.000821,59173.0,59172.0,1.33676904]
[1724102636028,0.000821,59173.0,59172.0,1.27596904]
[1724102640311,0.000821,59173.0,59172.0,1.34056904]
[1724102641070,0.000821,59173.0,59172.0,1.67856604]
[1724102656582,0.000821,59173.0,59172.0,1.61396604]
[1724102658586,0.062721,59173.0,59172.0,1.19766904]
[1724102659209,0.062721,59173.0,59172.0,0.85967204]
[1724102659210,0.139921,59173.0,59172.0,0.85967204]
[1724102661798,0.19043791,59173.0,59172.0,0.85967204]
[1724102662117,0.139921,59173.0,59172.0,0.85967204]
[1724102663137,0.1904492,59173.0,59172.0,0.85967204]
[1724102663499,0.139921,59173.0,59172.0,0.85967204]
[1724102666196,0.19045868,59173.0,59172.0,0.85967204]
[1724102666764,0.139921,59173.0,59172.0,0.85967204]
[1724102666941,0.19046338,59173.0,59172.0,0.85967204]
[1724102669355,0.139921,59173.0,59172.0,0.85967204]
[1724102669709,0.19046015,59173.0,59172.0,0.85967204]
[1724102669924,0.139921,59173.0,59172.0,0.85967204]
[1724102670125,0.05136927,59174.0,59173.0,0.506986]
[1724102670280,0.05136927,59174.0,59173.0,0.844977]
[1724102670479,0.05136927,59174.0,59173.0,0.85934291]
[1724102671299,0.000821,59174.0,59173.0,0.85934291]
[1724102673124,0.062821,59174.0,59173.0,0.85934291]
[1724102673906,0.11337075,59174.0,59173.0,0.85934291]
[1724102674056,0.062821,59174.0,59173.0,0.85934291]
[1724102678751,0.000821,59174.0,59173.0,0.85934291]
[1724102680050,0.05136054,59174.0,59173.0,0.85934291]
[1724102680970,0.0513622,59174.0,59173.0,0.85934291]
[1724102685530,0.000821,59174.0,59173.0,0.85934291]
[1724102685737,0.05136478,59174.0,59173.0,0.85934291]
[1724102688793,0.000821,59174.0,59173.0,0.85934291]
[1724102689222,0.05136478,59174.0,59173.0,0.85934291]
[1724102689419,0.000821,59174.0,59173.0,0.85934291]
[1724102689644,0.05136478,59174.0,59173.0,0.85934291]
[1724102690023,0.000821,59174.0,59173.0,0.85934291]
[1724102690633,0.0513712,59174.0,59173.0,0.85934291]
[1724102691190,0.000821,59174.0,59173.0,0.85934291]
[1724102691741,0.0513712,59174.0,59173.0,0.85934291]
[1724102692362,0.000821,59174.0,59173.0,0.85934291]
[1724102693452,0.000821,59174.0,59173.0,1.19733391]
[1724102693753,0.000821,59174.0,59173.0,1.27413391]
[1724102695293,0.000821,59174.0,59173.0,1.27503811]
[1724102696365,0.150121,59174.0,59173.0,0.86024711]
[1724102696989,0.20069155,59174.0,59173.0,0.86024711]
[1724102698012,0.150121,59174.0,59173.0,0.86024711]
[1724102698217,0.20069155,59174.0,59173.0,0.86024711]
[1724102700458,0.22597682,59174.0,59173.0,0.86024711]
[1724102700865,1.28977762,59174.0,59173.0,0.01527011]
[1724102701085,0.85065052,59174.0,59173.0,0.01527011]
[1724102701295,0.85065052,59174.0,59173.0,0.0009042]
[1724102701506,1.18863652,59174.0,59173.0,0.0009042]
[1724102701627,0.85065052,59174.0,59173.0,0.0009042]
[1724102701833,1.18863652,59174.0,59173.0,0.0009042]
[1724102702630,0.17232275,59174.0,59173.0,0.0009042]
[1724102702840,0.08783929,59174.0,59173.0,0.0009042]
[1724102703046,0.18895308,59174.0,59173.0,0.0009042]
[1724102703350,0.18895308,59174.0,59173.0,0.52285781]
[1724102703564,0.000821,59174.0,59173.0,0.5078902]
[1724102703769,0.000821,59174.0,59173.0,0.52285781]
[1724102704181,0.000821,59174.0,59173.0,0.86084881]
[1724102704579,0.10193479,59174.0,59173.0,0.86084881]
[1724102704788,0.000821,59174.0,59173.0,0.52285781]
[1724102705403,0.0766591,59174.0,59173.0,0.52285781]
[1724102706218,0.000821,59174.0,59173.0,0.52285781]
[1724102706750,0.0766575,59174.0,59173.0,0.52285781]
[1724102707360,0.07665938,59174.0,59173.0,0.52285781]
[1724102707558,0.000821,59174.0,59173.0,0.52285781]
[1724102707776,0.07665042,59174.0,59173.0,0.52285781]
[1724102710026,0.10193885,59174.0,59173.0,0.52285781]
[1724102710205,0.12059804,59174.0,59173.0,0.52285781]
[1724102710632,0.12058787,59174.0,59173.0,0.52285781]
[1724102713248,0.01948019,59174.0,59173.0,0.52285781]
[1724102713501,0.000821,59174.0,59173.0,0.52285781]
[1724102713928,0.12063493,59174.0,59173.0,0.52285781]
[1724102714117,0.0194894,59174.0,59173.0,0.52285781]
[1724102714366,0.12063493,59174.0,59173.0,0.52285781]
[1724102715016,0.12721831,59174.0,59173.0,0.52285781]
[1724102715226,0.14603843,59174.0,59173.0,0.52285781]
[1724102715440,0.01964112,59174.0,59173.0,0.52285781]
[1724102715652,0.10198462,59174.0,59173.0,0.52285781]
[1724102715867,0.12080474,59174.0,59173.0,0.52285781]
[1724102716075,0.01964112,59174.0,59173.0,0.52285781]
[1724102716282,0.10198447,59174.0,59173.0,0.52285781]
[1724102716465,0.01964112,59174.0,59173.0,0.52285781]
[1724102716692,0.01949293,59174.0,59173.0,0.52285781]
[1724102717026,0.01949475,59174.0,59173.0,0.52285781]
[1724102717224,0.10199773,59174.0,59173.0,0.52285781]
[1724102717904,0.14596251,59174.0,59173.0,0.52285781]
[1724102718285,0.01949475,59174.0,59173.0,0.52285781]
[1724102718902,0.09499475,59174.0,59173.0,0.52285781]
[1724102719111,0.15959475,59174.0,59173.0,0.52285781]
[1724102719727,0.28605457,59174.0,59173.0,0.52285781]
[1724102719931,0.15959475,59174.0,59173.0,0.52285781]
[1724102720371,0.32858775,59174.0,59173.0,0.01587181]
[1724102720777,0.66657375,59174.0,59173.0,0.01587181]
[1724102720990,0.32858775,59174.0,59173.0,0.01587181]
[1724102721193,0.66657375,59174.0,59173.0,0.01587181]
[1724102721402,0.66657056,59174.0,59173.0,0.01587181]
[1724102721632,0.83791933,59174.0,59173.0,0.01587181]
[1724102722049,1.17590533,59174.0,59173.0,0.01587181]
[1724102722259,1.17590533,59174.0,59173.0,0.0009042]
[1724102723545,0.83791933,59174.0,59173.0,0.0009042]
[1724102723983,0.83791933,59174.0,59173.0,0.01253587]
[1724102724185,0.83791933,59174.0,59173.0,0.0009042]
[1724102724392,1.17590533,59174.0,59173.0,0.0009042]
[1724102724596,1.17590533,59174.0,59173.0,0.01253587]
[1724102724835,1.17590533,59174.0,59173.0,0.0009042]
[1724102730513,1.17590099,59174.0,59173.0,0.0009042]
[1724102732753,1.20235307,59174.0,59173.0,0.0009042]
[1724102733190,1.17590099,59174.0,59173.0,0.0009042]
[1724102733577,1.20235307,59174.0,59173.0,0.0009042]
[1724102738278,1.17590099,59174.0,59173.0,0.0009042]
[1724102738702,1.20235313,59174.0,59173.0,0.0009042]
[1724102744723,1.20235198,59174.0,59173.0,0.0009042]
[1724102744900,1.12245198,59174.0,59173.0,0.0009042]
[1724102747211,1.20235198,59174.0,59173.0,0.0009042]
[1724102749273,1.20235205,59174.0,59173.0,0.0009042]
[1724102754830,1.12245205,59174.0,59173.0,0.0009042]
[1724102758230,1.27414337,59174.0,59173.0,0.0009042]
[1724102760235,1.21394337,59174.0,59173.0,0.0009042]
[1724102763196,1.1428774,59174.0,59173.0,0.0009042]
[1724102764507,1.1428774,59174.0,59173.0,0.01286633]
[1724102764634,1.1428774,59174.0,59173.0,0.0009042]
[1724102764840,1.1428774,59174.0,59173.0,0.01286633]
[1724102765046,1.1428774,59174.0,59173.0,0.0009042]
[1724102765561,1.1428774,59174.0,59173.0,0.01286633]
[1724102765765,1.1428774,59174.0,59173.0,0.0009042]
[1724102766169,1.1428774,59174.0,59173.0,0.01286633]
[1724102766400,1.1428774,59174.0,59173.0,0.0009042]
[1724102768497,1.1428774,59174.0,59173.0,0.01288788]
[1724102774540,1.29569422,59174.0,59173.0,0.01288788]
[1724102774766,1.29568663,59174.0,59173.0,0.01288788]
[1724102775120,1.14394817,59174.0,59173.0,0.01288788]
[1724102775338,1.14367832,59174.0,59173.0,0.01288788]
[1724102775488,1.21399305,59174.0,59173.0,0.01288788]
[1724102775684,0.80626387,59174.0,59173.0,0.01288788]
[1724102775889,0.87599124,59174.0,59173.0,0.01288788]
[1724102776105,0.72426605,59174.0,59173.0,0.01288788]
[1724102776306,0.87599317,59174.0,59173.0,0.01288788]
[1724102776517,0.80540345,59174.0,59173.0,0.01288788]
[1724102778166,0.87598315,59174.0,59173.0,0.01288788]
[1724102778462,0.80615236,59174.0,59173.0,0.01288788]
[1724102781184,0.87597991,59174.0,59173.0,0.01288788]
[1724102781853,0.80619842,59174.0,59173.0,0.01288788]
[1724102782605,0.80619842,59174.0,59173.0,0.0009042]
[1724102785552,0.8055784,59174.0,59173.0,0.0009042]
[1724102791258,0.8055784,59174.0,59173.0,0.01545481]
[1724102791544,0.8055784,59174.0,59173.0,0.0009042]
[1724102791753,0.8055784,59174.0,59173.0,0.01545481]
[1724102791993,0.8055784,59174.0,59173.0,0.0009042]
[1724102792268,0.8055784,59174.0,59173.0,0.01545481]
[1724102792506,0.8055784,59174.0,59173.0,0.0009042]
[1724102792767,0.8055784,59174.0,59173.0,0.01545481]
[1724102793019,0.8055784,59174.0,59173.0,0.0009042]
[1724102793254,0.8055784,59174.0,59173.0,0.01545481]
[1724102793488,0.8055784,59174.0,59173.0,0.0009042]
[1724102794787,0.80522967,59174.0,59173.0,0.0009042]
[1724102798212,1.14321567,59174.0,59173.0,0.0009042]
[1724102799394,1.14294402,59174.0,59173.0,0.0009042]
[1724102799974,1.14294402,59174.0,59173.0,0.0012084]
[1724102801860,1.14242831,59174.0,59173.0,0.0012084]
[1724102807393,1.64421431,59174.0,59173.0,0.0012084]
[1724102807642,1.81485615,59174.0,59173.0,0.0012084]
[1724102807854,1.64421431,59174.0,59173.0,0.0012084]
[1724102808665,1.64069222,59174.0,59173.0,0.0012084]
[1724102809522,1.8112784,59174.0,59173.0,0.0012084]
[1724102812516,1.5448572,59174.0,59173.0,0.0012084]
[1724102813379,1.81106751,59174.0,59173.0,0.0012084]
[1724102814054,1.62182499,59174.0,59173.0,0.0012084]
[1724102814237,1.5448572,59174.0,59173.0,0.0012084]
[1724102814983,1.56006342,59174.0,59173.0,0.0012084]
[1724102815117,1.55997813,59174.0,59173.0,0.0012084]
[1724102815324,1.89796413,59174.0,59173.0,0.0012084]
[1724102816375,1.89796413,59174.0,59173.0,0.0022084]
[1724102816784,1.89796413,59174.0,59173.0,0.0012084]
[1724102817195,1.89796413,59174.0,59173.0,0.0022084]
[1724102817568,2.10390854,59174.0,59173.0,0.0022084]
[1724102817842,1.99896413,59174.0,59173.0,0.0032084]
[1724102817975,1.99796413,59174.0,59173.0,0.0022084]
[1724102818379,2.00096413,59174.0,59173.0,0.0032084]
[1724102819968,2.0899749,59174.0,59173.0,0.0032084]
[1724102820895,2.08997347,59174.0,59173.0,0.0032084]
[1724102821120,2.08997347,59174.0,59173.0,0.00288757]
[1724102821121,2.12400134,59174.0,59173.0,0.00288757]
[1724102822514,2.08997347,59174.0,59173.0,0.00288757]
[1724102827738,2.59695347,59174.0,59173.0,0.00288757]
[1724102828376,2.93493947,59174.0,59173.0,0.00288757]
[1724102829396,2.93493947,59174.0,59173.0,0.0025084]
[1724102829598,2.84593013,59174.0,59173.0,0.0025084]
[1724102829797,2.93327194,59174.0,59173.0,0.0025084]
[1724102829952,2.59528594,59174.0,59173.0,0.0025084]
[1724102832405,2.93327194,59174.0,59173.0,0.0025084]
[1724102834530,2.9333698,59174.0,59173.0,0.0025084]
[1724102835853,3.0842962,59174.0,59173.0,0.0025084]
[1724102836027,3.0842962,59174.0,59173.0,0.0015084]
[1724102836243,3.11771857,59174.0,59173.0,0.0025084]
[1724102836618,3.11471857,59174.0,59173.0,0.0025084]
[1724102837384,2.9423698,59174.0,59173.0,0.00107684]
[1724102837613,3.0524698,59174.0,59173.0,0.00107684]
[1724102838084,3.0524698,59174.0,59173.0,0.001]
[1724102839648,3.20289834,59174.0,59173.0,0.001]
[1724102840308,3.37424711,59174.0,59173.0,0.001]
[1724102840494,3.55244711,59174.0,59173.0,0.001]
[1724102841204,3.55244711,59174.0,59173.0,0.00074516]
[1724102841664,1.664259,59173.0,59172.0,0.0009042]
[1724102841900,2.90125689,59173.0,59172.0,0.0009042]
[1724102842862,3.23924789,59173.0,59172.0,0.0009042]
[1724102843078,3.25224789,59173.0,59172.0,0.0019042]
[1724102844044,3.26624789,59173.0,59172.0,0.0029042]
[1724102844941,3.78243889,59173.0,59172.0,0.0029042]
[1724102845344,3.78243889,59173.0,59172.0,0.00252348]
[1724102847570,4.01185469,59173.0,59172.0,0.00165983]
[1724102847721,4.24952263,59173.0,59172.0,0.00165983]
[1724102848532,4.00150555,59173.0,59172.0,0.00165983]
[1724102848739,3.86883707,59173.0,59172.0,0.00165983]
[1724102849113,3.76383761,59173.0,59172.0,0.00256403]
[1724102849521,1.863983,59172.0,59171.0,0.0009031]
[1724102849787,3.22677961,59172.0,59171.0,0.0009031]
[1724102850416,3.56477661,59172.0,59171.0,0.0009031]
[1724102850619,3.75697661,59172.0,59171.0,0.0019031]
[1724102851242,0.004,59156.0,59155.0,0.0643042]
[1724102851454,1.33501391,59156.0,59155.0,0.0643042]
[1724102851665,2.4181193,59156.0,59155.0,0.07572182]
[1724102851865,2.4181193,59156.0,59155.0,0.1433042]
[1724102852477,2.59646807,59156.0,59155.0,0.0799042]
[1724102852641,2.7632083,59156.0,59155.0,0.0799042]
[1724102852843,2.75516731,59156.0,59155.0,0.0799042]
[1724102853250,2.93423456,59156.0,59155.0,0.0009042]
[1724102853515,2.8049404,59156.0,59155.0,0.0009042]
[1724102853665,2.8189404,59156.0,59155.0,0.0009042]
[1724102854850,2.8119404,59156.0,59155.0,0.0009042]
[1724102855270,2.8259404,59156.0,59155.0,0.0009042]
[1724102856129,3.0666404,59156.0,59155.0,0.0009042]
[1724102857600,3.06292087,59156.0,59155.0,0.0009042]
[1724102859802,3.07290015,59156.0,59155.0,0.0009042]
[1724102860848,3.21217636,59156.0,59155.0,0.00071311]
[1724102863998,1.526499,59152.0,59151.0,0.0009042]
[1724102864178,2.68475778,59152.0,59151.0,0.0009042]
[1724102864381,2.82595778,59152.0,59151.0,0.0009042]
[1724102864578,3.16406878,59152.0,59151.0,0.0009042]
[1724102865649,3.17806878,59152.0,59151.0,0.0009042]
[1724102865804,3.34941755,59152.0,59151.0,0.0009042]
[1724102867239,3.36341755,59152.0,59151.0,0.0009042]
[1724102867992,3.37019455,59152.0,59151.0,0.0009042]
[1724102871404,3.29049455,59152.0,59151.0,0.0009042]
[1724102872280,3.29040917,59152.0,59151.0,0.0009042]
[1724102872794,3.70502017,59152.0,59151.0,0.0009042]
[1724102873585,2.20267462,59151.0,59150.0,4e-07]
[1724102873899,2.20267462,59151.0,59147.0,0.0009042]
[1724102873900,0.75630762,59149.0,59147.0,0.0009042]
[1724102874013,2.7506534,59149.0,59147.0,0.0009042]
[1724102874217,3.4269114,59149.0,59148.0,2e-07]
[1724102874418,3.5079114,59149.0,59148.0,2e-07]
[1724102874661,3.67385436,59149.0,59148.0,2e-07]
[1724102875482,3.67385436,59149.0,59147.0,0.0009042]
[1724102875483,1.86465162,59148.0,59147.0,0.0009042]
[1724102875693,2.7495104,59148.0,59147.0,0.0009042]
[1724102876102,2.9278104,59148.0,59147.0,0.0009042]
[1724102876308,3.09038217,59148.0,59147.0,0.0009042]
[1724102877280,2.7397334,59148.0,59147.0,0.1481042]
[1724102877458,0.83043412,59148.0,59147.0,0.1481042]
[1724102877662,0.52098,59148.0,59147.0,0.3171742]
[1724102877874,0.52098,59148.0,59147.0,0.99353958]
[1724102878086,0.22118,59148.0,59147.0,1.3470758]
[1724102878300,0.19561119,59165.0,59154.0,0.93193538]
[1724102878301,0.0951,59165.0,59154.0,0.93193538]
[1724102878772,0.0951,59165.0,59154.0,0.94731885]
[1724102879797,0.000822,59171.0,59167.0,0.0796]
[1724102880078,0.0951,59169.0,59168.0,0.24529538]
[1724102880288,0.26644877,59169.0,59168.0,0.24529538]
[1724102880508,0.26644877,59169.0,59168.0,0.26042212]
[1724102880713,0.26644877,59169.0,59168.0,0.59844212]
[1724102881123,0.26644877,59169.0,59168.0,0.60474212]
[1724102881464,0.27644877,59169.0,59168.0,0.60574212]
[1724102881912,0.28544877,59169.0,59168.0,0.60574212]
[1724102883927,0.28544877,59169.0,59168.0,0.6058275]
[1724102884335,0.28544877,59169.0,59168.0,0.9438475]
[1724102884336,0.019,59169.0,59168.0,0.9438475]
[1724102885092,0.019,59169.0,59168.0,0.94376212]
[1724102885508,0.019,59169.0,59168.0,0.9438475]
[1724102886701,0.019822,59169.0,59168.0,0.9438475]
[1724102887327,0.019822,59169.0,59168.0,1.2818675]
[1724102888053,0.019822,59169.0,59168.0,1.28209622]
[1724102888429,0.019822,59169.0,59168.0,1.28201084]
[1724102888676,0.019822,59169.0,59168.0,1.28209622]
[1724102894229,0.019822,59169.0,59168.0,1.62011622]
[1724102894641,0.010822,59169.0,59168.0,1.62011622]
[1724102895192,0.010822,59169.0,59168.0,2.12948499]
[1724102895403,0.000822,59171.0,59170.0,1.18611638]
[1724102895663,0.000822,59171.0,59170.0,1.80022538]
[1724102895874,0.000822,59171.0,59170.0,1.81712618]
[1724102896740,0.000822,59171.0,59170.0,1.82252618]
[1724102897169,0.001822,59171.0,59170.0,1.84667526]
[1724102897376,0.002822,59171.0,59170.0,1.84867526]
[1724102898750,0.002822,59171.0,59170.0,2.02002403]
[1724102899164,0.002822,59171.0,59170.0,2.35803303]
[1724102900054,0.00022,59174.0,59173.0,1.52404438]
[1724102900276,0.00022,59174.0,59173.0,1.79524438]
[1724102900487,0.00022,59174.0,59173.0,1.81012432]
[1724102901188,0.00022,59174.0,59173.0,1.80972432]
[1724102901318,0.00122,59174.0,59173.0,1.81172432]
[1724102901522,0.00122,59174.0,59173.0,1.81272432]
[1724102901729,0.00122,59174.0,59173.0,1.81472432]
[1724102902862,0.00222,59174.0,59173.0,1.82472432]
[1724102903110,0.00222,59174.0,59173.0,1.82495302]
[1724102904081,0.00222,59174.0,59173.0,1.82195302]
[1724102904435,0.00222,59174.0,59173.0,1.82195301]
[1724102907181,0.00222,59174.0,59173.0,1.82295301]
[1724102907865,0.00222,59174.0,59173.0,1.82195301]
[1724102908335,0.00222,59174.0,59173.0,1.82495301]
[1724102908800,0.00222,59174.0,59173.0,1.82295301]
[1724102909786,0.00222,59174.0,59173.0,1.82195301]
[1724102910723,0.00222,59174.0,59173.0,1.82295301]
[1724102911670,0.00222,59174.0,59173.0,1.82195301]
[1724102912167,0.00222,59174.0,59173.0,1.82295301]
[1724102912604,0.00222,59174.0,59173.0,1.82495301]
[1724102913724,0.00222,59174.0,59173.0,1.82195301]
[1724102914276,0.00222,59174.0,59173.0,1.82295301]
[1724102914822,0.00222,59174.0,59173.0,1.82195301]
[1724102915061,0.00222,59174.0,59173.0,1.82495301]
[1724102915861,0.00222,59174.0,59173.0,2.33629278]
[1724102916316,0.00222,59174.0,59173.0,2.33429278]
[1724102916526,0.00222,59174.0,59173.0,2.33629278]
[1724102918227,0.00222,59174.0,59173.0,2.33529278]
[1724102918439,0.00222,59174.0,59173.0,2.33629278]
[1724102921167,0.00222,59174.0,59173.0,2.33429277]
[1724102921168,0.00122,59174.0,59173.0,2.33429277]
[1724102921374,0.00222,59174.0,59173.0,2.33629277]
[1724102921523,0.00122,59174.0,59173.0,2.32629277]
[1724102922402,0.000822,59199.0,59173.0,2.32629277]
[1724102922403,1e-06,59180.0,59179.0,0.17406338]
[1724102922583,0.078622,59199.0,59181.0,0.59130438]
[1724102922584,0.065022,59199.0,59181.0,0.59130438]
[1724102922786,0.065022,59199.0,59181.0,1.87671983]
[1724102922975,0.065022,59199.0,59181.0,2.56728531]
[1724102923903,0.000822,59199.0,59185.0,2.03806138]
[1724102924106,0.000822,59199.0,59185.0,2.30963883]
[1724102924340,0.000822,59199.0,59185.0,2.32516744]
[1724102925277,0.00921,59186.0,59185.0,2.33916744]
[1724102925530,0.00921,59186.0,59185.0,2.33916743]
[1724102926109,0.00921,59186.0,59185.0,2.35316743]
[1724102926316,0.00921,59186.0,59185.0,3.85316743]
[1724102927317,0.00921,59186.0,59185.0,1.83784443]
[1724102927525,0.00921,59186.0,59185.0,1.93294443]
[1724102928159,0.00921,59186.0,59185.0,2.02760843]
[1724102928568,0.00921,59186.0,59185.0,1.93250843]
[1724102929845,0.00921,59186.0,59185.0,1.93050843]
[1724102930104,0.00921,59186.0,59185.0,1.93150843]
[1724102930614,0.00921,59186.0,59185.0,1.93450843]
[1724102931117,0.00921,59186.0,59185.0,2.34444605]
[1724102931366,0.00921,59186.0,59185.0,2.34853142]
[1724102931595,0.00921,59186.0,59185.0,2.34704604]
[1724102932584,0.00921,59186.0,59185.0,2.35013142]
[1724102933142,0.00921,59186.0,59185.0,2.34704604]
[1724102933397,0.15291,59186.0,59185.0,1.93050842]
[1724102933935,0.07371,59186.0,59185.0,1.93050842]
[1724102934163,0.07271,59186.0,59185.0,1.90650442]
[1724102934579,0.07371,59186.0,59185.0,1.91950442]
[1724102935628,0.07371,59186.0,59185.0,1.90550442]
[1724102935784,0.07271,59186.0,59185.0,1.89250442]
[1724102935990,0.07371,59186.0,59185.0,1.91850442]
[1724102936356,0.07371,59186.0,59185.0,1.90450442]
[1724102936486,0.15461,59186.0,59185.0,1.39723265]
[1724102936886,0.15561,59186.0,59185.0,1.40823265]
[1724102937457,0.15461,59186.0,59185.0,1.38323265]
[1724102937674,0.15561,59186.0,59185.0,1.38923265]
[1724102938398,0.15561,59186.0,59185.0,1.38923264]
[1724102938598,0.15561,59186.0,59185.0,1.39523264]
[1724102940667,0.15561,59186.0,59185.0,1.05730964]
[1724102943869,0.15561,59186.0,59185.0,0.95730964]
[1724102946406,0.15561,59186.0,59185.0,0.95722426]
[1724102946606,0.15561,59186.0,59185.0,0.95730964]
[1724102947023,0.15561,59186.0,59185.0,1.29523264]
[1724102949550,0.07371,59186.0,59185.0,1.29523264]
[1724102950750,0.07371,59186.0,59185.0,2.79523264]
[1724102951157,0.07371,59186.0,59185.0,2.79514726]
[1724102951378,0.07371,59186.0,59185.0,2.79523264]
[1724102952440,0.07371,59186.0,59185.0,1.29514726]
[1724102952770,0.07371,59186.0,59185.0,2.45730964]
[1724102953286,0.07371,59186.0,59185.0,2.79523264]
[1724102953880,0.07371,59186.0,59185.0,2.45730964]
[1724102954811,0.07371,59186.0,59185.0,0.95730964]
[1724102965316,1.090702,59186.0,59185.0,0.11241726]
[1724102965596,1.16621942,59186.0,59185.0,0.09688865]
[1724102965811,1.19137446,59186.0,59185.0,0.09688865]
[1724102966057,1.19137446,59186.0,59185.0,0.03028865]
[1724102966058,1.59996777,59186.0,59185.0,0.03028865]
[1724102966267,1.67545092,59186.0,59185.0,0.03028865]
[1724102966470,1.59996777,59186.0,59185.0,0.03028865]
[1724102966679,1.59996777,59186.0,59185.0,0.01222865]
[1724102966680,1.77131654,59186.0,59185.0,0.01222865]
[1724102966885,1.77131654,59186.0,59182.0,0.0009031]
[1724102966886,1.182769,59183.0,59182.0,0.0009031]
[1724102967102,1.66789486,59183.0,59182.0,0.0009031]
[1724102967354,1.59241777,59183.0,59182.0,0.0009031]
[1724102967550,1.6188702,59183.0,59182.0,0.0009031]
[1724102967971,1.6188702,59183.0,59182.0,0.0019031]
[1724102968174,1.73109815,59183.0,59182.0,0.0019031]
[1724102968576,1.62319815,59183.0,59182.0,0.0009031]
[1724102968780,1.66365058,59183.0,59182.0,0.0019031]
[1724102968979,1.66365058,59183.0,59182.0,0.0029031]
[1724102969185,1.51651777,59183.0,59182.0,0.0029031]
[1724102970300,1.61699548,59183.0,59182.0,0.0029031]
[1724102970503,1.61700292,59183.0,59182.0,0.0029031]
[1724102970847,1.61700292,59183.0,59182.0,0.0216831]
[1724102971254,1.51651777,59183.0,59182.0,0.0216831]
[1724102971438,1.61700292,59183.0,59182.0,0.0216831]
[1724102971640,1.62732897,59183.0,59182.0,0.0216831]
[1724102971845,1.62731239,59183.0,59182.0,0.0216831]
[1724102972047,1.52684382,59183.0,59182.0,0.0216831]
[1724102972665,1.7632131,59183.0,59182.0,0.0216831]
[1724102972869,1.68786654,59183.0,59182.0,0.0216831]
[1724102973311,1.51651777,59183.0,59182.0,0.0216831]
[1724102975958,1.59186433,59183.0,59182.0,0.0216831]
[1724102976166,1.56673075,59183.0,59182.0,0.0216831]
[1724102976971,1.90466475,59183.0,59182.0,0.0216831]
[1724102977145,1.85445177,59183.0,59182.0,0.0216831]
[1724102977459,1.97786708,59183.0,59182.0,0.0216831]
[1724102977672,1.87745177,59183.0,59182.0,0.0216831]
[1724102977815,2.00303748,59183.0,59182.0,0.0216831]
[1724102978018,1.87745177,59183.0,59182.0,0.0216831]
[1724102978493,2.00303748,59183.0,59182.0,0.0216831]
[1724102978904,2.00403748,59183.0,59182.0,0.0216831]